[Event "Titled Tuesday Blitz February 21 Early 2023"]
[White "Shapiro, Viktor"]
[Black "Molina, Roberto Junio Brito"]
[WhiteFideId "4175700"]
[BlackFideId "2109450"]
[WhiteElo "2192"]
[BlackElo "2403"]
[Result "1/2-1/2"]
[Round "11"]
[TimeControl "180+2"]
[Date "2023.02.21"]
[WhiteClock "0:01:02"]
[BlackClock "0:00:13"]

1. c4 {[%clk 0:03:00]}  c6 {[%clk 0:02:59]} 2. Nc3 {[%clk 0:03:01]}  d5 {[%clk 0:02:54]} 3. d4 {[%clk 0:03:01]}  Nf6 {[%clk 0:02:53]} 4. Nf3 {[%clk 0:03:02]}  dxc4 {[%clk 0:02:52]} 5. a4 {[%clk 0:03:01]}  Bf5 {[%clk 0:02:51]} 6. e3 {[%clk 0:03:02]}  Nbd7 {[%clk 0:02:50]} 7. Bxc4 {[%clk 0:03:02]}  e6 {[%clk 0:02:51]} 8. O-O {[%clk 0:03:03]}  Bb4 {[%clk 0:02:50]} 9. Ne2 {[%clk 0:03:03]}  h6 {[%clk 0:02:49]} 10. b3 {[%clk 0:03:03]}  O-O {[%clk 0:02:48]} 11. Bb2 {[%clk 0:03:04]}  Qe7 {[%clk 0:02:47]} 12. Ng3 {[%clk 0:03:04]}  Bh7 {[%clk 0:02:47]} 13. Qe2 {[%clk 0:03:05]}  Ne4 {[%clk 0:02:46]} 14. Rfd1 {[%clk 0:03:02]}  Nc3 {[%clk 0:02:40]} 15. Bxc3 {[%clk 0:03:02]}  Bxc3 {[%clk 0:02:41]} 16. Rac1 {[%clk 0:03:03]}  Bb4 {[%clk 0:02:41]} 17. e4 {[%clk 0:03:02]}  Rad8 {[%clk 0:02:39]} 18. h3 {[%clk 0:02:56]}  Rfe8 {[%clk 0:02:39]} 19. Qe3 {[%clk 0:02:55]}  a5 {[%clk 0:02:38]} 20. Nh5 {[%clk 0:02:43]}  Nb6 {[%clk 0:02:34]} 21. Be2 {[%clk 0:02:39]}  Nc8 {[%clk 0:02:30]} 22. Qf4 {[%clk 0:02:37]}  Bg6 {[%clk 0:02:22]} 23. Qg4 {[%clk 0:02:33]}  Bxh5 {[%clk 0:02:15]} 24. Qxh5 {[%clk 0:02:33]}  Nd6 {[%clk 0:02:12]} 25. Bd3 {[%clk 0:02:28]}  Nc8 {[%clk 0:01:53]} 26. Qg4 {[%clk 0:02:22]}  Bd6 {[%clk 0:01:30]} 27. e5 {[%clk 0:02:16]}  Ba3 {[%clk 0:01:30]} 28. Rc2 {[%clk 0:02:12]}  f5 {[%clk 0:01:28]} 29. exf6 {[%clk 0:02:11]}  Qxf6 {[%clk 0:01:28]} 30. Re2 {[%clk 0:02:11]}  Bb4 {[%clk 0:01:24]} 31. Bc4 {[%clk 0:02:09]}  Rd6 {[%clk 0:01:20]} 32. Rd3 {[%clk 0:01:44]}  Nb6 {[%clk 0:01:19]} 33. Rde3 {[%clk 0:01:45]}  Nxc4 {[%clk 0:01:10]} 34. bxc4 {[%clk 0:01:45]}  Re7 {[%clk 0:00:59]} 35. c5 {[%clk 0:01:45]}  Rd5 {[%clk 0:00:46]} 36. Rxe6 {[%clk 0:01:44]}  Rxe6 {[%clk 0:00:47]} 37. Rxe6 {[%clk 0:01:42]}  Qf5 {[%clk 0:00:46]} 38. Qxf5 {[%clk 0:01:37]}  Rxf5 {[%clk 0:00:47]} 39. Re8+ {[%clk 0:01:36]}  Rf8 {[%clk 0:00:46]} 40. Rxf8+ {[%clk 0:01:37]}  Kxf8 {[%clk 0:00:47]} 41. Kf1 {[%clk 0:01:37]}  Ba3 {[%clk 0:00:46]} 42. Ke2 {[%clk 0:01:37]}  Bc1 {[%clk 0:00:46]} 43. Kd3 {[%clk 0:01:37]}  Bf4 {[%clk 0:00:45]} 44. Ke4 {[%clk 0:01:37]}  Bc7 {[%clk 0:00:44]} 45. d5 {[%clk 0:01:37]}  cxd5+ {[%clk 0:00:43]} 46. Kxd5 {[%clk 0:01:37]}  Ke7 {[%clk 0:00:44]} 47. Nd4 {[%clk 0:01:38]}  Kf6 {[%clk 0:00:43]} 48. Ne6 {[%clk 0:01:33]}  Bh2 {[%clk 0:00:40]} 49. Nd8 {[%clk 0:01:31]}  Bg1 {[%clk 0:00:40]} 50. f3 {[%clk 0:01:31]}  b6 {[%clk 0:00:40]} 51. c6 {[%clk 0:01:31]}  Ke7 {[%clk 0:00:40]} 52. Ne6 {[%clk 0:01:28]}  g6 {[%clk 0:00:37]} 53. Nf4 {[%clk 0:01:21]}  g5 {[%clk 0:00:36]} 54. Nd3 {[%clk 0:01:22]}  Kd8 {[%clk 0:00:33]} 55. Ne5 {[%clk 0:01:21]}  Kc7 {[%clk 0:00:33]} 56. g4 {[%clk 0:01:21]}  Bh2 {[%clk 0:00:24]} 57. Nf7 {[%clk 0:01:21]}  b5 {[%clk 0:00:22]} 58. axb5 {[%clk 0:01:21]}  a4 {[%clk 0:00:23]} 59. Kc4 {[%clk 0:01:21]}  Kb6 {[%clk 0:00:19]} 60. Nxh6 {[%clk 0:01:18]}  a3 {[%clk 0:00:20]} 61. Kb3 {[%clk 0:01:18]}  Kxb5 {[%clk 0:00:19]} 62. Kxa3 {[%clk 0:01:17]}  Kxc6 {[%clk 0:00:19]} 63. Kb3 {[%clk 0:01:18]}  Kd5 {[%clk 0:00:20]} 64. Kc3 {[%clk 0:01:18]}  Ke5 {[%clk 0:00:20]} 65. Kd3 {[%clk 0:01:18]}  Kf4 {[%clk 0:00:21]} 66. Ke2 {[%clk 0:01:18]}  Kg3 {[%clk 0:00:21]} 67. Nf7 {[%clk 0:01:18]}  Kh4 {[%clk 0:00:20]} 68. Kf2 {[%clk 0:01:17]}  Kxh3 {[%clk 0:00:19]} 69. Nxg5+ {[%clk 0:01:16]}  Kh4 {[%clk 0:00:20]} 70. Ne4 {[%clk 0:01:16]}  Bf4 {[%clk 0:00:20]} 71. Kg2 {[%clk 0:01:16]}  Be5 {[%clk 0:00:20]} 72. Nf2 {[%clk 0:01:16]}  Bf4 {[%clk 0:00:19]} 73. Nd3 {[%clk 0:01:16]}  Be3 {[%clk 0:00:20]} 74. Ne5 {[%clk 0:01:16]}  Kg5 {[%clk 0:00:18]} 75. Nc4 {[%clk 0:01:14]}  Ba7 {[%clk 0:00:13]} 76. Nd2 {[%clk 0:01:12]}  Kf4 {[%clk 0:00:12]} 77. Ne4 {[%clk 0:01:10]}  Bb8 {[%clk 0:00:12]} 78. Kf2 {[%clk 0:01:09]}  Ba7+ {[%clk 0:00:11]} 79. Ke2 {[%clk 0:01:10]}  Bb8 {[%clk 0:00:12]} 80. Nc3 {[%clk 0:01:10]}  Bd6 {[%clk 0:00:11]} 81. Nb5 {[%clk 0:01:07]}  Be5 {[%clk 0:00:11]} 82. Na3 {[%clk 0:01:06]}  Bd6 {[%clk 0:00:11]} 83. Nc4 {[%clk 0:01:06]}  Bc7 {[%clk 0:00:11]} 84. Ne3 {[%clk 0:01:07]}  Bd6 {[%clk 0:00:12]} 85. Nd5+ {[%clk 0:01:07]}  Ke5 {[%clk 0:00:12]} 86. Nb6 {[%clk 0:01:07]}  Kf4 {[%clk 0:00:11]} 87. Nc8 {[%clk 0:01:06]}  Bc5 {[%clk 0:00:11]} 88. g5 {[%clk 0:01:02]}  Kxg5 {[%clk 0:00:11]} 89. Kd3 {[%clk 0:01:03]}  Kf4 {[%clk 0:00:11]} 90. Ke2 {[%clk 0:01:03]}  Ke5 {[%clk 0:00:11]} 91. Kd3 {[%clk 0:01:04]}  Ke6 {[%clk 0:00:11]} 92. Ke4 {[%clk 0:01:04]}  Kf6 {[%clk 0:00:09]} 93. f4 {[%clk 0:01:04]}  Ke6 {[%clk 0:00:09]} 94. f5+ {[%clk 0:01:04]}  Kf6 {[%clk 0:00:09]} 95. Kf4 {[%clk 0:01:05]}  Kf7 {[%clk 0:00:10]} 96. Kg5 {[%clk 0:01:05]}  Be3+ {[%clk 0:00:09]} 97. Kg4 {[%clk 0:01:06]}  Bc5 {[%clk 0:00:10]} 98. Kf4 {[%clk 0:01:06]}  Kf6 {[%clk 0:00:10]} 99. Ke4 {[%clk 0:01:06]}  Kf7 {[%clk 0:00:11]} 100. Ke5 {[%clk 0:01:07]}  Kg7 {[%clk 0:00:10]} 101. Ke6 {[%clk 0:01:07]}  Kf8 {[%clk 0:00:10]} 102. f6 {[%clk 0:01:07]}  Ke8 {[%clk 0:00:11]} 103. f7+ {[%clk 0:01:06]}  Kf8 {[%clk 0:00:11]} 104. Kf6 {[%clk 0:01:04]}  Bd4+ {[%clk 0:00:11]} 105. Kg6 {[%clk 0:01:04]}  Bc5 {[%clk 0:00:12]} 106. Kf6 {[%clk 0:01:03]}  Bd4+ {[%clk 0:00:12]} 107. Ke6 {[%clk 0:01:04]}  Bc5 {[%clk 0:00:13]} 108. Kf6 {[%clk 0:01:02]} 1/2-1/2


[Site "https://www.chess.com"]

[Event "Titled Tuesday Blitz February 21 Early 2023"]
[White "Pranav, V"]
[Black "Potapova, Margarita"]
[WhiteFideId "25060783"]
[BlackFideId "14126869"]
[WhiteElo "2597"]
[BlackElo "2104"]
[Result "1/2-1/2"]
[Round "11"]
[TimeControl "180+2"]
[Date "2023.02.21"]
[WhiteClock "0:00:12"]
[BlackClock "0:00:16"]

1. Nf3 {[%clk 0:03:00]}  Nf6 {[%clk 0:02:53]} 2. g3 {[%clk 0:03:01]}  b6 {[%clk 0:02:49]} 3. Bg2 {[%clk 0:03:02]}  Bb7 {[%clk 0:02:49]} 4. d3 {[%clk 0:03:03]}  g6 {[%clk 0:02:35]} 5. O-O {[%clk 0:03:03]}  Bg7 {[%clk 0:02:34]} 6. e4 {[%clk 0:03:04]}  d6 {[%clk 0:02:33]} 7. Re1 {[%clk 0:03:02]}  O-O {[%clk 0:02:33]} 8. Nc3 {[%clk 0:03:03]}  c5 {[%clk 0:02:32]} 9. Bg5 {[%clk 0:03:01]}  Nbd7 {[%clk 0:02:31]} 10. Qd2 {[%clk 0:03:01]}  Ne5 {[%clk 0:02:12]} 11. Bh6 {[%clk 0:02:59]}  Nxf3+ {[%clk 0:02:10]} 12. Bxf3 {[%clk 0:03:00]}  e5 {[%clk 0:02:09]} 13. h4 {[%clk 0:02:57]}  Qe7 {[%clk 0:02:08]} 14. Kg2 {[%clk 0:02:56]}  Ne8 {[%clk 0:01:48]} 15. Rh1 {[%clk 0:02:55]}  f5 {[%clk 0:01:42]} 16. Bg5 {[%clk 0:02:36]}  Qf7 {[%clk 0:01:37]} 17. h5 {[%clk 0:02:32]}  fxe4 {[%clk 0:01:37]} 18. Bxe4 {[%clk 0:02:33]}  d5 {[%clk 0:01:33]} 19. hxg6 {[%clk 0:02:33]}  hxg6 {[%clk 0:01:32]} 20. Rh4 {[%clk 0:02:31]}  dxe4 {[%clk 0:01:31]} 21. dxe4 {[%clk 0:02:32]}  Qf3+ {[%clk 0:01:31]} 22. Kg1 {[%clk 0:02:32]}  Nf6 {[%clk 0:01:22]} 23. Bxf6 {[%clk 0:02:05]}  Rxf6 {[%clk 0:01:11]} 24. Rf1 {[%clk 0:02:02]}  Raf8 {[%clk 0:01:00]} 25. Qd7 {[%clk 0:01:57]}  R6f7 {[%clk 0:00:58]} 26. Qe6 {[%clk 0:01:45]}  Qf6 {[%clk 0:00:58]} 27. Qc4 {[%clk 0:01:45]}  g5 {[%clk 0:00:49]} 28. Rh2 {[%clk 0:01:44]}  a6 {[%clk 0:00:44]} 29. a4 {[%clk 0:01:44]}  Rd8 {[%clk 0:00:39]} 30. Qe2 {[%clk 0:01:41]}  Qf3 {[%clk 0:00:38]} 31. Qc4 {[%clk 0:01:37]}  Qf6 {[%clk 0:00:36]} 32. Qe2 {[%clk 0:01:37]}  Rd4 {[%clk 0:00:35]} 33. Qg4 {[%clk 0:01:34]}  Rd8 {[%clk 0:00:29]} 34. Rh5 {[%clk 0:01:17]}  Bc8 {[%clk 0:00:25]} 35. Qxg5 {[%clk 0:01:11]}  Qxg5 {[%clk 0:00:25]} 36. Rxg5 {[%clk 0:01:11]}  Bb7 {[%clk 0:00:20]} 37. Rg6 {[%clk 0:00:21]}  Rf6 {[%clk 0:00:20]} 38. Rxf6 {[%clk 0:00:22]}  Bxf6 {[%clk 0:00:21]} 39. Kg2 {[%clk 0:00:23]}  Rd4 {[%clk 0:00:21]} 40. Re1 {[%clk 0:00:22]}  b5 {[%clk 0:00:20]} 41. axb5 {[%clk 0:00:22]}  axb5 {[%clk 0:00:21]} 42. Kf3 {[%clk 0:00:16]}  b4 {[%clk 0:00:19]} 43. Na4 {[%clk 0:00:16]}  Be7 {[%clk 0:00:18]} 44. b3 {[%clk 0:00:13]}  Rd2 {[%clk 0:00:17]} 45. Rc1 {[%clk 0:00:12]}  Rd4 {[%clk 0:00:16]} 46. Re1 {[%clk 0:00:12]}  Rd2 {[%clk 0:00:17]} 47. Rc1 {[%clk 0:00:12]}  Rd4 {[%clk 0:00:16]} 48. Re1 {[%clk 0:00:12]} 1/2-1/2


[Site "https://www.chess.com"]

[Event "Titled Tuesday Blitz February 21 Early 2023"]
[White "Navara, David"]
[Black "Hasangatin, Ramil"]
[WhiteFideId "309095"]
[BlackFideId "4122160"]
[WhiteElo "2678"]
[BlackElo "2457"]
[Result "1-0"]
[Round "11"]
[TimeControl "180+2"]
[Date "2023.02.21"]
[WhiteClock "0:01:01"]
[BlackClock "0:01:08"]

1. d4 {[%clk 0:03:00]}  d6 {[%clk 0:02:59]} 2. e4 {[%clk 0:03:00]}  Nf6 {[%clk 0:02:58]} 3. Nc3 {[%clk 0:03:01]}  e5 {[%clk 0:02:59]} 4. Nf3 {[%clk 0:03:01]}  Nbd7 {[%clk 0:02:59]} 5. Bc4 {[%clk 0:03:02]}  Be7 {[%clk 0:02:59]} 6. a4 {[%clk 0:03:02]}  O-O {[%clk 0:02:59]} 7. O-O {[%clk 0:03:02]}  c6 {[%clk 0:02:59]} 8. Re1 {[%clk 0:03:01]}  exd4 {[%clk 0:02:58]} 9. Nxd4 {[%clk 0:03:02]}  Ne5 {[%clk 0:02:58]} 10. Ba2 {[%clk 0:02:45]}  Re8 {[%clk 0:02:58]} 11. h3 {[%clk 0:02:35]}  Bd7 {[%clk 0:02:57]} 12. Be3 {[%clk 0:02:33]}  Bf8 {[%clk 0:02:56]} 13. f4 {[%clk 0:02:29]}  Ng6 {[%clk 0:02:56]} 14. Qd3 {[%clk 0:02:28]}  Qa5 {[%clk 0:02:40]} 15. Nf3 {[%clk 0:02:12]}  Rad8 {[%clk 0:02:30]} 16. Ng5 {[%clk 0:02:07]}  d5 {[%clk 0:02:07]} 17. exd5 {[%clk 0:02:08]}  cxd5 {[%clk 0:02:01]} 18. Nxd5 {[%clk 0:02:06]}  Be6 {[%clk 0:01:53]} 19. Nxe6 {[%clk 0:01:52]}  fxe6 {[%clk 0:01:43]} 20. Nxf6+ {[%clk 0:01:52]}  gxf6 {[%clk 0:01:41]} 21. Qe4 {[%clk 0:01:48]}  Bc5 {[%clk 0:01:31]} 22. f5 {[%clk 0:01:31]}  Ne5 {[%clk 0:01:27]} 23. fxe6 {[%clk 0:01:27]}  Kg7 {[%clk 0:01:16]} 24. Kh1 {[%clk 0:01:23]}  Bxe3 {[%clk 0:01:15]} 25. Rxe3 {[%clk 0:01:24]}  Rd2 {[%clk 0:01:10]} 26. Rg3+ {[%clk 0:01:12]}  Ng6 {[%clk 0:01:09]} 27. Qxb7+ {[%clk 0:01:11]}  Kh8 {[%clk 0:01:09]} 28. Qf7 {[%clk 0:01:06]}  Rf8 {[%clk 0:01:08]} 29. Rxg6 {[%clk 0:00:59]}  Rxf7 {[%clk 0:01:08]} 30. exf7 {[%clk 0:01:00]}  Rd8 {[%clk 0:01:08]} 31. Rg8+ {[%clk 0:01:00]}  Rxg8 {[%clk 0:01:08]} 32. fxg8=Q# {[%clk 0:01:01]} 1-0


[Site "https://www.chess.com"]

[Event "Titled Tuesday Blitz February 21 Early 2023"]
[White "Yuan, Qingyu"]
[Black "Averjanov, Alexey"]
[WhiteFideId "8609772"]
[BlackFideId "14109867"]
[WhiteElo "2373"]
[BlackElo "2399"]
[Result "0-1"]
[Round "11"]
[TimeControl "180+2"]
[Date "2023.02.21"]
[WhiteClock "0:00:03"]
[BlackClock "0:00:03"]

1. e4 {[%clk 0:03:00]}  c6 {[%clk 0:02:58]} 2. d4 {[%clk 0:03:00]}  d5 {[%clk 0:02:58]} 3. exd5 {[%clk 0:03:01]}  cxd5 {[%clk 0:02:58]} 4. Bd3 {[%clk 0:03:02]}  Nc6 {[%clk 0:02:58]} 5. c3 {[%clk 0:03:02]}  Qc7 {[%clk 0:02:58]} 6. h3 {[%clk 0:03:02]}  g6 {[%clk 0:02:57]} 7. Nf3 {[%clk 0:03:02]}  Bf5 {[%clk 0:02:57]} 8. O-O {[%clk 0:03:02]}  Bxd3 {[%clk 0:02:56]} 9. Qxd3 {[%clk 0:03:02]}  Nf6 {[%clk 0:02:57]} 10. Re1 {[%clk 0:03:01]}  Bg7 {[%clk 0:02:57]} 11. Be3 {[%clk 0:03:01]}  O-O {[%clk 0:02:56]} 12. Nbd2 {[%clk 0:03:02]}  Rfe8 {[%clk 0:02:55]} 13. g3 {[%clk 0:02:55]}  Rad8 {[%clk 0:02:51]} 14. Bf4 {[%clk 0:02:54]}  Qc8 {[%clk 0:02:50]} 15. Kg2 {[%clk 0:02:54]}  e6 {[%clk 0:02:50]} 16. Bg5 {[%clk 0:02:48]}  h6 {[%clk 0:02:47]} 17. Bf4 {[%clk 0:02:47]}  Kh7 {[%clk 0:02:39]} 18. h4 {[%clk 0:02:44]}  a6 {[%clk 0:02:35]} 19. Nb3 {[%clk 0:02:39]}  b6 {[%clk 0:02:29]} 20. Rh1 {[%clk 0:02:29]}  Ne4 {[%clk 0:02:22]} 21. h5 {[%clk 0:02:21]}  g5 {[%clk 0:02:17]} 22. Bxg5 {[%clk 0:02:21]}  hxg5 {[%clk 0:02:12]} 23. Nxg5+ {[%clk 0:02:21]}  Kg8 {[%clk 0:02:09]} 24. Nxe4 {[%clk 0:02:21]}  dxe4 {[%clk 0:02:10]} 25. Qxe4 {[%clk 0:02:22]}  Bh6 {[%clk 0:01:59]} 26. Rae1 {[%clk 0:02:12]}  Rd5 {[%clk 0:01:54]} 27. Rh4 {[%clk 0:02:09]}  Kh8 {[%clk 0:01:45]} 28. c4 {[%clk 0:02:08]}  Rg5 {[%clk 0:01:42]} 29. d5 {[%clk 0:02:04]}  Re5 {[%clk 0:01:11]} 30. Qf3 {[%clk 0:01:55]}  Rxe1 {[%clk 0:01:09]} 31. Rg4 {[%clk 0:01:55]}  Rg8 {[%clk 0:00:54]} 32. Qf6+ {[%clk 0:01:55]}  Kh7 {[%clk 0:00:47]} 33. Qxf7+ {[%clk 0:01:51]}  Rg7 {[%clk 0:00:45]} 34. Rxg7+ {[%clk 0:01:43]}  Bxg7 {[%clk 0:00:46]} 35. Qg6+ {[%clk 0:01:40]}  Kh8 {[%clk 0:00:46]} 36. h6 {[%clk 0:01:40]}  Bf8 {[%clk 0:00:39]} 37. Nd2 {[%clk 0:01:28]}  Re5 {[%clk 0:00:30]} 38. Nf3 {[%clk 0:00:58]}  Rf5 {[%clk 0:00:26]} 39. Nh4 {[%clk 0:00:52]}  Ne7 {[%clk 0:00:21]} 40. Qg4 {[%clk 0:00:49]}  Rf7 {[%clk 0:00:16]} 41. dxe6 {[%clk 0:00:40]}  Rf6 {[%clk 0:00:15]} 42. h7 {[%clk 0:00:30]}  Qxe6 {[%clk 0:00:14]} 43. Qd4 {[%clk 0:00:29]}  Bg7 {[%clk 0:00:11]} 44. Qd3 {[%clk 0:00:21]}  Qc6+ {[%clk 0:00:09]} 45. Kg1 {[%clk 0:00:21]}  Qd6 {[%clk 0:00:09]} 46. Qe2 {[%clk 0:00:17]}  Re6 {[%clk 0:00:09]} 47. Qh5 {[%clk 0:00:17]}  Qc6 {[%clk 0:00:08]} 48. Kh2 {[%clk 0:00:14]}  Re1 {[%clk 0:00:08]} 49. Nf3 {[%clk 0:00:13]}  Re6 {[%clk 0:00:06]} 50. Kg1 {[%clk 0:00:12]}  Rh6 {[%clk 0:00:06]} 51. Qf7 {[%clk 0:00:12]}  Qf6 {[%clk 0:00:04]} 52. Qe8+ {[%clk 0:00:12]}  Kxh7 {[%clk 0:00:05]} 53. Nh4 {[%clk 0:00:11]}  Rxh4 {[%clk 0:00:04]} 54. gxh4 {[%clk 0:00:11]}  Qxh4 {[%clk 0:00:05]} 55. b3 {[%clk 0:00:11]}  Qg5+ {[%clk 0:00:05]} 56. Kf1 {[%clk 0:00:11]}  Qf6 {[%clk 0:00:06]} 57. Qh5+ {[%clk 0:00:11]}  Bh6 {[%clk 0:00:07]} 58. c5 {[%clk 0:00:10]}  bxc5 {[%clk 0:00:06]} 59. Qxc5 {[%clk 0:00:11]}  Ng6 {[%clk 0:00:06]} 60. Qa7+ {[%clk 0:00:11]}  Bg7 {[%clk 0:00:06]} 61. b4 {[%clk 0:00:11]}  Ne5 {[%clk 0:00:06]} 62. Qb7 {[%clk 0:00:10]}  Kh8 {[%clk 0:00:06]} 63. Qa8+ {[%clk 0:00:10]}  Bf8 {[%clk 0:00:06]} 64. Qh1+ {[%clk 0:00:10]}  Kg8 {[%clk 0:00:06]} 65. Qd5+ {[%clk 0:00:10]}  Nf7 {[%clk 0:00:06]} 66. b5 {[%clk 0:00:10]}  axb5 {[%clk 0:00:06]} 67. Qxb5 {[%clk 0:00:10]}  Bd6 {[%clk 0:00:06]} 68. Qe8+ {[%clk 0:00:10]}  Kg7 {[%clk 0:00:05]} 69. Qe4 {[%clk 0:00:11]}  Bc5 {[%clk 0:00:05]} 70. Qg4+ {[%clk 0:00:10]}  Ng5 {[%clk 0:00:05]} 71. Qg3 {[%clk 0:00:11]}  Kf7 {[%clk 0:00:05]} 72. Kg2 {[%clk 0:00:11]}  Qc6+ {[%clk 0:00:04]} 73. Kf1 {[%clk 0:00:11]}  Be7 {[%clk 0:00:04]} 74. Qf4+ {[%clk 0:00:11]}  Qf6 {[%clk 0:00:04]} 75. Qc4+ {[%clk 0:00:10]}  Qe6 {[%clk 0:00:05]} 76. Qd3 {[%clk 0:00:11]}  Qf6 {[%clk 0:00:05]} 77. Qc4+ {[%clk 0:00:11]}  Ne6 {[%clk 0:00:05]} 78. Qg4 {[%clk 0:00:11]}  Bc5 {[%clk 0:00:05]} 79. Qg3 {[%clk 0:00:10]}  Qa1+ {[%clk 0:00:05]} 80. Kg2 {[%clk 0:00:10]}  Qxa2 {[%clk 0:00:06]} 81. Qf3+ {[%clk 0:00:11]}  Ke7 {[%clk 0:00:05]} 82. Qb7+ {[%clk 0:00:11]}  Kd6 {[%clk 0:00:06]} 83. Qb8+ {[%clk 0:00:12]}  Nc7 {[%clk 0:00:06]} 84. Qd8+ {[%clk 0:00:12]}  Kc6 {[%clk 0:00:06]} 85. Qf6+ {[%clk 0:00:12]}  Kb7 {[%clk 0:00:05]} 86. Kg3 {[%clk 0:00:10]}  Qb3+ {[%clk 0:00:05]} 87. f3 {[%clk 0:00:10]}  Qd5 {[%clk 0:00:05]} 88. Kg2 {[%clk 0:00:08]}  Bd6 {[%clk 0:00:06]} 89. Qb2+ {[%clk 0:00:08]}  Kc6 {[%clk 0:00:06]} 90. Qc3+ {[%clk 0:00:09]}  Qc5 {[%clk 0:00:07]} 91. Qd3 {[%clk 0:00:09]}  Nd5 {[%clk 0:00:07]} 92. Qe4 {[%clk 0:00:09]}  Qc3 {[%clk 0:00:06]} 93. Qe8+ {[%clk 0:00:06]}  Kc5 {[%clk 0:00:06]} 94. Qc8+ {[%clk 0:00:06]}  Nc7 {[%clk 0:00:06]} 95. Qf5+ {[%clk 0:00:06]}  Be5 {[%clk 0:00:05]} 96. Qe4 {[%clk 0:00:05]}  Qd2+ {[%clk 0:00:05]} 97. Kh3 {[%clk 0:00:05]}  Qh2+ {[%clk 0:00:05]} 98. Kg4 {[%clk 0:00:06]}  Qg3+ {[%clk 0:00:05]} 99. Kf5 {[%clk 0:00:06]}  Kd6 {[%clk 0:00:05]} 100. Qd3+ {[%clk 0:00:03]}  Ke7 {[%clk 0:00:05]} 101. Qe4 {[%clk 0:00:03]}  Kd6 {[%clk 0:00:05]} 102. Qd3+ {[%clk 0:00:03]}  Nd5 {[%clk 0:00:05]} 103. Qa6+ {[%clk 0:00:03]}  Kc5 {[%clk 0:00:05]} 104. Qa5+ {[%clk 0:00:03]}  Kc4 {[%clk 0:00:05]} 105. Qa6+ {[%clk 0:00:03]}  Kc5 {[%clk 0:00:03]} 106. Qa5+ {[%clk 0:00:03]}  Kc6 {[%clk 0:00:04]} 107. Qa6+ {[%clk 0:00:03]}  Kd7 {[%clk 0:00:04]} 108. Qe6+ {[%clk 0:00:03]}  Kd8 {[%clk 0:00:03]} 109. Qxd5+ {[%clk 0:00:04]}  Bd6 {[%clk 0:00:03]} 110. Ke6 {[%clk 0:00:03]}  Qg6# {[%clk 0:00:03]} 0-1


[Site "https://www.chess.com"]

[Event "Titled Tuesday Blitz February 21 Early 2023"]
[White "Orlov, Georgi"]
[Black "Real_OceanStorm"]
[WhiteFideId "2011271"]
[WhiteElo "2453"]
[BlackElo "2781"]
[Result "0-1"]
[Round "11"]
[TimeControl "180+2"]
[Date "2023.02.21"]
[WhiteClock "0:00:13"]
[BlackClock "0:00:03"]

1. e4 {[%clk 0:03:00]}  e5 {[%clk 0:02:58]} 2. Nf3 {[%clk 0:03:01]}  Nc6 {[%clk 0:02:59]} 3. Bc4 {[%clk 0:03:01]}  Nf6 {[%clk 0:02:58]} 4. d3 {[%clk 0:02:59]}  Na5 {[%clk 0:02:58]} 5. Nxe5 {[%clk 0:02:58]}  Nxc4 {[%clk 0:02:58]} 6. Nxc4 {[%clk 0:02:58]}  d5 {[%clk 0:02:59]} 7. exd5 {[%clk 0:02:58]}  Qe7+ {[%clk 0:02:59]} 8. Ne3 {[%clk 0:02:52]}  Nxd5 {[%clk 0:02:59]} 9. O-O {[%clk 0:02:52]}  Nxe3 {[%clk 0:02:59]} 10. Bxe3 {[%clk 0:02:52]}  Be6 {[%clk 0:03:00]} 11. a4 {[%clk 0:02:50]}  O-O-O {[%clk 0:03:00]} 12. Bxa7 {[%clk 0:02:48]}  Qb4 {[%clk 0:02:43]} 13. Be3 {[%clk 0:02:39]}  Bd6 {[%clk 0:02:43]} 14. Nc3 {[%clk 0:02:36]}  Qxb2 {[%clk 0:02:40]} 15. Nb5 {[%clk 0:02:36]}  Qe5 {[%clk 0:02:37]} 16. Nxd6+ {[%clk 0:02:31]}  Qxd6 {[%clk 0:02:37]} 17. Qh5 {[%clk 0:02:26]}  Qc6 {[%clk 0:02:31]} 18. a5 {[%clk 0:02:21]}  Rd5 {[%clk 0:02:13]} 19. Qh4 {[%clk 0:02:18]}  f6 {[%clk 0:02:04]} 20. Qg3 {[%clk 0:02:11]}  Rg8 {[%clk 0:02:03]} 21. Rfd1 {[%clk 0:02:05]}  Qa6 {[%clk 0:01:51]} 22. c4 {[%clk 0:02:03]}  Rxa5 {[%clk 0:01:48]} 23. Rxa5 {[%clk 0:01:56]}  Qxa5 {[%clk 0:01:48]} 24. Bd4 {[%clk 0:01:54]}  Qa4 {[%clk 0:01:39]} 25. Ra1 {[%clk 0:01:53]}  Qc2 {[%clk 0:01:36]} 26. h3 {[%clk 0:01:43]}  Kd7 {[%clk 0:01:34]} 27. Qf3 {[%clk 0:01:39]}  b6 {[%clk 0:01:34]} 28. Ra7 {[%clk 0:01:36]}  Qc1+ {[%clk 0:01:25]} 29. Kh2 {[%clk 0:01:35]}  Qg5 {[%clk 0:01:23]} 30. Bxb6 {[%clk 0:01:25]}  Qe5+ {[%clk 0:01:23]} 31. g3 {[%clk 0:01:24]}  Rc8 {[%clk 0:01:21]} 32. d4 {[%clk 0:01:19]}  Qf5 {[%clk 0:01:15]} 33. Qxf5 {[%clk 0:01:19]}  Bxf5 {[%clk 0:01:15]} 34. d5 {[%clk 0:01:19]}  Kd6 {[%clk 0:01:16]} 35. Ba5 {[%clk 0:01:19]}  Bd3 {[%clk 0:01:16]} 36. Bb4+ {[%clk 0:01:18]}  Ke5 {[%clk 0:01:16]} 37. c5 {[%clk 0:01:16]}  Kxd5 {[%clk 0:01:16]} 38. Ra4 {[%clk 0:01:07]}  Rb8 {[%clk 0:00:49]} 39. Bd2 {[%clk 0:01:01]}  Kxc5 {[%clk 0:00:48]} 40. Be3+ {[%clk 0:01:00]}  Kc6 {[%clk 0:00:48]} 41. g4 {[%clk 0:00:54]}  Rb2 {[%clk 0:00:44]} 42. Kg3 {[%clk 0:00:53]}  Rb3 {[%clk 0:00:43]} 43. Rd4 {[%clk 0:00:51]}  Be2 {[%clk 0:00:43]} 44. Rd8 {[%clk 0:00:50]}  Bc4 {[%clk 0:00:37]} 45. h4 {[%clk 0:00:48]}  Rb1 {[%clk 0:00:37]} 46. Rh8 {[%clk 0:00:41]}  Rg1+ {[%clk 0:00:23]} 47. Kf3 {[%clk 0:00:35]}  Bd5+ {[%clk 0:00:23]} 48. Kf4 {[%clk 0:00:35]}  h6 {[%clk 0:00:22]} 49. h5 {[%clk 0:00:35]}  Be6 {[%clk 0:00:16]} 50. f3 {[%clk 0:00:35]}  Rd1 {[%clk 0:00:16]} 51. Re8 {[%clk 0:00:28]}  Kd7 {[%clk 0:00:09]} 52. Rh8 {[%clk 0:00:25]}  Bd5 {[%clk 0:00:09]} 53. Rh7 {[%clk 0:00:23]}  Rf1 {[%clk 0:00:09]} 54. Kf5 {[%clk 0:00:20]}  Rxf3+ {[%clk 0:00:09]} 55. Bf4 {[%clk 0:00:19]}  Bc6 {[%clk 0:00:05]} 56. Rxg7+ {[%clk 0:00:17]}  Kd8 {[%clk 0:00:06]} 57. Ke6 {[%clk 0:00:13]}  Rxf4 {[%clk 0:00:03]} 58. Rg8+ {[%clk 0:00:13]}  Be8 {[%clk 0:00:03]} 59. g5 {[%clk 0:00:13]}  fxg5 {[%clk 0:00:03]} 60. Rh8 {[%clk 0:00:13]}  Rd4 {[%clk 0:00:03]} 61. Kf6 {[%clk 0:00:12]}  Rd6+ {[%clk 0:00:03]} 62. Kg7 {[%clk 0:00:12]}  g4 {[%clk 0:00:04]} 63. Rxh6 {[%clk 0:00:12]}  Rxh6 {[%clk 0:00:04]} 64. Kxh6 {[%clk 0:00:13]}  g3 {[%clk 0:00:03]} 0-1


[Site "https://www.chess.com"]